Workbook

Sheet MSU
B1: Pyry Takala | E1: 12.03.1986
B2: SUPERPESIS | E2: Runkosarja | I2: Kärkilyönnit (KL), pesänvälit | P2: Runkosarja TOP-30 | U2: Ylempi loppusarja | AB2: Ylempi loppusarja TOP-10 | AG2: Play off, voitot, voittoprosentti | AL2: Arvo-ottelut | AO2: Mitalit
B3: Vuosi | C3: Sija | D3: Seura | E3: OTT | F3: KUN | G3: LÖI | H3: TOI | I3: KL | J3: 0 > 1 | K3: 1 > 2 | L3: 2 > 3 | M3: 3 > k | N3: KL-% | P3: LÖI | Q3: TOI | R3: L+T | S3: KL | U3: OTT | V3: KUN | W3: LÖI | X3: TOI | Y3: KL | Z3: KL-% | AB3: LÖI | AC3: TOI | AD3: L+T | AE3: KL | AG3: Puolivälierät | AH3: Välierät | AI3: Pronssi | AJ3: Finaalit | AL3: IL | AM3: LL | AN3: hSM | AO3: K | AP3: H | AQ3: P
B4: 2001 | C4: 5. | D4: KiPa 2 | F4: suomensarja | AA4: 0
B5: 2002 | C5: 1. | D5: KiPa 2 | F5: suomensarja | AA5: 0
B6: 2003 | C6: 7. | D6: KiPa 2 | F6: suomensarja
B7: 2003 | C7: 9. | D7: KiPa | E7: 1 | F7: 0 | G7: 0 | H7: 0 | I7: 1 | J7: 1 | K7: 0 | L7: 0 | M7: 0 | N7: 25.0 % | AA7: 0
B8: 2004 | C8: 2. | D8: ToPo | F8: suomensarja | AA8: 0
B9: 2004 | C9: 2. | D9: KiPa | E9: 23 | F9: 0 | G9: 1 | H9: 14 | I9: 48 | J9: 44 | K9: 2 | L9: 1 | M9: 1 | N9: 53.3 % | U9: 9 | V9: 1 | W9: 1 | X9: 8 | Y9: 28 | Z9: 65.1 % | AA9: 66 | AG9: Jatkosarja 1. | AH9: 3-1 SMJ | AJ9: 1-2 SoJy | AP9: 1
B10: 2005 | C10: 5. | D10: ToPo | F10: suomensarja
B11: 2005 | C11: 1. | D11: KiPa | E11: 19 | F11: 0 | G11: 2 | H11: 9 | I11: 48 | J11: 43 | K11: 2 | L11: 1 | M11: 2 | N11: 51.1 % | U11: 15 | V11: 0 | W11: 1 | X11: 7 | Y11: 31 | Z11: 43.7 % | AG11: Jatkosarja 2. | AH11: 3-2 Tahko | AJ11: 3-0 NJ | AN11: 1 | AO11: 1
B12: 2006 | C12: 4. | D12: ToPo | F12: suomensarja | AA12: 0
B13: 2006 | C13: 4. | D13: KiPa | E13: 27 | F13: 0 | G13: 0 | H13: 21 | I13: 63 | J13: 61 | K13: 1 | L13: 1 | M13: 0 | N13: 50.0 % | Q13: 28. | U13: 11 | V13: 0 | W13: 0 | X13: 7 | Y13: 20 | Z13: 41.7 % | AA13: 0 | AG13: Jatkosarja 4. | AH13: 0-3 SoJy | AI13: 0-1 PuPe
B14: Yhteensä | E14: 70 | F14: 0 | G14: 3 | H14: 44 | I14: 160 | J14: 149 | K14: 5 | L14: 3 | M14: 3 | N14: 51.0 % | P14: 0-0-0 | Q14: 0-0-0 | R14: 0-0-0 | S14: 0-0-0 | U14: =PRODUCT(E20) -> 35 | V14: 1 | W14: 2 | X14: 22 | Y14: 79 | Z14: =PRODUCT(N20) -> 48.2 % | AA14: =SUM(AA3:AA13) -> 66 | AB14: 0-0-0 | AC14: 0-0-0 | AD14: 0-0-0 | AE14: 0-0-0 | AG14: 3/3 | AH14: 2/3 | AI14: 0/1 | AJ14: 1/2 | AL14: 0 | AM14: 0 | AN14: 1 | AO14: 1 | AP14: 1 | AQ14: 0
AG15: 100.0 % | AH15: 66.7 % | AI15: 0.0 % | AJ15: 50.0 %
B16: Pesispörssi | D16: 177.7
B18: URA SUPERISSA | E18: OTT | F18: KUN | G18: LÖI | H18: TOI | I18: KL | K18: ka/L | L18: ka/T | M18: ka/KL | N18: KL-% | P18: ENSIMMÄISET RUNKOSARJASSA | AG18: ENSIMMÄISET PUDOTUSPELEISSÄ | AL18: YLEISÖ
B19: Runkosarja | E19: 70 | F19: 0 | G19: 3 | H19: 44 | I19: 160 | K19: 0.04 | L19: 0.63 | M19: 2.29 | N19: 51.0 % | P19: Ottelu | R19: 03.07. 2003 KiPa - Tahko 1-2 (2-5, 2-1, 1-2) | AB19: 1. ottelu | AD19: 17 v 3 kk 21 pv | AG19: Ottelu | AH19: 1. 12.08. 2004 SoJy - KiPa 1-0 | AL19: 1816 | AN19: 18 v 5 kk 0 pv
B20: Ylempi loppusarja | E20: 35 | F20: 1 | G20: 2 | H20: 22 | I20: 79 | K20: 0.09 | L20: 0.63 | M20: 2.26 | N20: 48.2 % | P20: Lyöty | R20: 15.07. 2004 Tahko - KiPa 1-2 (4-0, 8-11, 1-1, 1-2) | AB20: 19. ottelu | AD20: 18 v 4 kk 3 pv | AG20: Lyöty | AH20: 6. 22.08. 2004 Lippo - KiPa 0-2 | AL20: 1648 | AN20: 18 v 5 kk 10 pv
B21: Alempi loppusarja | P21: Tuotu | R21: 18.05. 2004 KiPa - KiPe 1-2 (1-7, 7-0, 0-0, 1-2) | AB21: 5. ottelu | AD21: 18 v 2 kk 6 pv | AG21: Tuotu | AH21: 2. 14.08. 2004 KiPa - NJ 1-2 k | AL21: 1230 | AN21: 18 v 5 kk 2 pv
B22: KAIKKI | E22: 105 | F22: 1 | G22: 5 | H22: 66 | I22: 239 | K22: 0.06 | L22: 0.63 | M22: 2.28 | N22: 50.0 % | P22: Kunnari | AG22: Kunnari | AH22: 6. 25.08. 2004 KiPa - PuPe 2-0 | AL22: 1186 | AN22: 18 v 5 kk 13 pv
B24: Seurat | D24: KiPa = Kiteen Pallo-90 (1990)
D25: ToPo = Tohmajärven Pomppu (1991) | AG25: KATSOJIA YLI 5000
AG26: 5117 | AH26: 59. 10.09. 2005 KiPa - NJ 2-0, fin 3/3

Sheet MSS
B1: Pyry Takala | E1: 12.03.1986
B2: YKKÖSPESIS | E2: Runkosarja | L2: Runkosarja TOP-10 | Q2: Jatkosarjat | X2: SUOMENSARJA | AA2: Runkosarja | AH2: Runkosarja TOP-10 | AM2: Jatkosarjat
B3: Vuosi | C3: Sija | D3: Seura | E3: OTT | F3: KUN | G3: LÖI | H3: TOI | I3: KL | J3: KL-% | L3: LÖI | M3: TOI | N3: L+T | O3: KL | Q3: OTT | R3: KUN | S3: LÖI | T3: TOI | U3: KL | V3: KL-% | X3: Vuosi | Y3: Sija | Z3: Seura | AA3: OTT | AB3: KUN | AC3: LÖI | AD3: TOI | AE3: KL | AF3: KL-% | AH3: LÖI | AI3: TOI | AJ3: L+T | AK3: KL | AM3: OTT | AN3: KUN | AO3: LÖI | AP3: TOI | AQ3: KL | AR3: KL-%
X4: 2002 | Y4: 1. | Z4: KiPa 2 | AA4: 11 | AB4: 0 | AC4: 2 | AD4: 11 | AE4: 24 | AF4: 44.4 % | AG4: 54 | AM4: 4 | AN4: 1 | AO4: 0 | AP4: 5 | AQ4: 10 | AR4: 55.6 % | AS4: 18
X5: 2003 | Y5: 7. | Z5: KiPa 2 | AA5: 13 | AB5: 1 | AC5: 0 | AD5: 19 | AE5: 53 | AF5: 57.6 % | AG5: 92
X6: 2004 | Y6: 2. | Z6: ToPo | AA6: 6 | AB6: 1 | AC6: 1 | AD6: 13 | AE6: 34 | AF6: 87.2 % | AG6: 39 | AM6: 1 | AN6: 1 | AO6: 1 | AP6: 4 | AQ6: 8 | AR6: 80.0 % | AS6: 10
X7: 2005 | Y7: 5. | Z7: ToPo | AA7: 2 | AB7: 0 | AC7: 0 | AD7: 6 | AE7: 10 | AF7: 55.6 % | AG7: 18
X8: 2006 | Y8: 4. | Z8: ToPo | AA8: 8 | AB8: 0 | AC8: 1 | AD8: 19 | AE8: 44 | AF8: 68.8 % | AG8: 64 | AM8: 1 | AN8: 0 | AO8: 0 | AP8: 0 | AQ8: 4 | AR8: 50.0 % | AS8: 8
B9: YHTEENSÄ | E9: =SUM(E4:E8) -> 0 | F9: =SUM(F4:F8) -> 0 | G9: =SUM(G4:G8) -> 0 | H9: =SUM(H4:H8) -> 0 | I9: =SUM(I4:I8) -> 0 | J9: 0.0 % | K9: =SUM(K4:K8) -> 0 | Q9: =SUM(Q4:Q8) -> 0 | R9: =SUM(R4:R8) -> 0 | S9: =SUM(S4:S8) -> 0 | T9: =SUM(T4:T8) -> 0 | U9: =SUM(U4:U8) -> 0 | V9: 0.0 % | W9: =SUM(W4:W8) -> 0 | X9: YHTEENSÄ | AA9: =SUM(AA4:AA8) -> 40 | AB9: =SUM(AB4:AB8) -> 2 | AC9: =SUM(AC4:AC8) -> 4 | AD9: =SUM(AD4:AD8) -> 68 | AE9: =SUM(AE4:AE8) -> 165 | AF9: =PRODUCT(AE9/AG9) -> 61.8 % | AG9: =SUM(AG4:AG8) -> 267 | AM9: =SUM(AM4:AM8) -> 6 | AN9: =SUM(AN4:AN8) -> 2 | AO9: =SUM(AO4:AO8) -> 1 | AP9: =SUM(AP4:AP8) -> 9 | AQ9: =SUM(AQ4:AQ8) -> 22 | AR9: =PRODUCT(AQ9/AS9) -> 61.1 % | AS9: =SUM(AS4:AS8) -> 36
B11: KAIKKI OTTELUT | E11: OTT | F11: KUN | G11: LÖI | H11: TOI | I11: KL | J11: KL-% | L11: ka/L | M11: ka/T | N11: ka/l+t | O11: ka/kl | R11: Seurat | T11: KiPa = Kiteen Pallo-90 (1990)
B12: SUPERPESIS | E12: 105 | F12: 1 | G12: 5 | H12: 66 | I12: 239 | J12: 50.0 % | K12: =PRODUCT(I12/J12) -> 478 | L12: =PRODUCT((F12+G12)/E12) -> 0.06 | M12: =PRODUCT(H12/E12) -> 0.63 | N12: =PRODUCT((F12+G12+H12)/E12) -> 0.69 | O12: =PRODUCT(I12/E12) -> 2.28 | T12: ToPo = Tohmajärven Pomppu (1991)
B13: YKKÖSPESIS | E13: =PRODUCT(E9+Q9) -> 0 | F13: =PRODUCT(F9+R9) -> 0 | G13: =PRODUCT(G9+S9) -> 0 | H13: =PRODUCT(H9+T9) -> 0 | I13: =PRODUCT(I9+U9) -> 0 | J13: 0.0 % | K13: =PRODUCT(K9+W9) -> 0 | L13: 0.00 | M13: 0.00 | N13: 0.00 | O13: 0.00
B14: SUOMENSARJA | E14: =PRODUCT(AA9+AM9) -> 46 | F14: =PRODUCT(AB9+AN9) -> 4 | G14: =PRODUCT(AC9+AO9) -> 5 | H14: =PRODUCT(AD9+AP9) -> 77 | I14: =PRODUCT(AE9+AQ9) -> 187 | J14: =PRODUCT(I14/K14) -> 61.7 % | K14: =PRODUCT(AG9+AS9) -> 303 | L14: =PRODUCT((F14+G14)/E14) -> 0.20 | M14: =PRODUCT(H14/E14) -> 1.67 | N14: =PRODUCT((F14+G14+H14)/E14) -> 1.87 | O14: =PRODUCT(I14/E14) -> 4.07
B15: YHTEENSÄ | E15: =SUM(E12:E14) -> 151 | F15: =SUM(F12:F14) -> 5 | G15: 10 | H15: 143 | I15: 426 | J15: =PRODUCT(I15/K15) -> 54.5 % | K15: =SUM(K12:K14) -> 781 | L15: =PRODUCT((F15+G15)/E15) -> 0.10 | M15: =PRODUCT(H15/E15) -> 0.95 | N15: =PRODUCT((F15+G15+H15)/E15) -> 1.05 | O15: =PRODUCT(I15/E15) -> 2.82

Sheet Arvo-ottelut
B1: ITÄ - LÄNSI - KORTTI
B2: Pyry Takala | C2: 12.03.1986
B3: B - POJAT | C3: Itä - Länsi, tulos | D3: Joukkue | E3: Seura | G3: V | H3: T | I3: H | J3: Up. | K3: Lj. | L3: Palk. | M3: O | N3: K | O3: L | P3: T | Q3: KL | R3: 1 | S3: 2 | T3: 3 | U3: k | V3: KL-% | W3: Pelinjohtaja | X3: Yleisöä
A4: 2 | B4: 03.08. 2003 Sotkamo | C4: 0-2 (3-6, 2-3) | D4: Itä | E4: ToPo | I4: 1 | J4: 2v | K4: 2 | M4: 1 | Q4: 2/4 | R4: 2/2 | S4: 0/2 | V4: 50.0 % | W4: Pasi Ahonen | X4: 1178
B5: 18.06. 2004 Hyvinkää | C5: 2-0 (3-0, 13-6) | D5: Itä | E5: ToPo | G5: 1 | J5: 2p | K5: 1 | M5: 1 | P5: 1 | Q5: 4/4 | S5: 2/2 | T5: 2/2 | V5: 100.0 % | W5: Markku Kiiski | X5: 630
B6: Yhteensä | G6: 1 | I6: 1 | M6: =SUM(M4:M5) -> 2 | P6: =SUM(P4:P5) -> 1 | Q6: 6/8 | R6: 2/2 | S6: 2/4 | T6: 2/2 | V6: 75.0 %
B8: A - POJAT | C8: Itä - Länsi, tulos | D8: Joukkue | E8: Seura | G8: V | H8: T | I8: H | J8: Up. | K8: Lj. | L8: Palk. | M8: O | N8: K | O8: L | P8: T | Q8: KL | R8: 1 | S8: 2 | T8: 3 | U8: k | V8: KL-% | W8: Pelinjohtaja | X8: Yleisöä
B9: 23.07. 2005 Oulu | C9: 2-1 (0-2, 3-2, 0-0, 2-1) | D9: Itä | E9: ToPo | G9: 1 | K9: jok | M9: 1 | Q9: 2/4 | R9: 2/4 | V9: 50.0 % | W9: Timo Riikonen | X9: 1462
A10: 7 | B10: 30.06. 2006 Kitee | C10: 0-2 (0-1, 0-1) | D10: Itä | E10: HaPe | I10: 1 | K10: jok | M10: 1 | Q10: 0/2 | R10: 0/2 | V10: 0.0 % | W10: Mika Sirviö | X10: 2125
B11: Yhteensä | G11: 1 | I11: 1 | M11: =SUM(M9:M10) -> 2 | Q11: 2/6 | R11: 2/6 | V11: 33.3 %

Sheet Kärkilyönnit
B1: KÄRKILYÖNNIT RUNKOSARJASSA | V1: VUOSITTAISET SIJOITUKSET TOP - 30
G2: 0 > 1 | J2: 1 > 2 | M2: 2 > 3 | P2: 3 > k | S2: Yhteensä
B3: Vuosi | C3: Sija | D3: Seura | E3: OTT | F3: KL | G3: YHT | H3: % | I3: KL | J3: YHT | K3: % | L3: KL | M3: YHT | N3: % | O3: KL | P3: YHT | Q3: % | R3: KL | S3: YHT | T3: % | V3: Vuosi | W3: Sija | X3: Seura | Y3: 0 > 1 | Z3: 1 > 2 | AA3: 2 > 3 | AB3: 3 > k | AC3: KL
B4: 2003 | C4: 6. | D4: KiPa | E4: 1 | F4: 1 | G4: 4 | H4: 25.0 % | I4: 0 | J4: 0 | K4: 0.0 % | L4: 0 | M4: 0 | N4: 0.0 % | O4: 0 | P4: 0 | Q4: 0.0 % | R4: 1 | S4: 4 | T4: 25.0 % | V4: 2003 | W4: 6. | X4: KiPa
B5: 2004 | C5: 8. | D5: KiPa | E5: 23 | F5: 44 | G5: 84 | H5: 52.4 % | I5: 2 | J5: 2 | K5: 100.0 % | L5: 1 | M5: 2 | N5: 50.0 % | O5: 1 | P5: 2 | Q5: 50.0 % | R5: 48 | S5: 90 | T5: 53.3 % | V5: 2004 | W5: 8. | X5: KiPa | Y5: 29.
B6: 2005 | C6: 10. | D6: KiPa | E6: 19 | F6: 43 | G6: 87 | H6: 49.4 % | I6: 2 | J6: 2 | K6: 100.0 % | L6: 1 | M6: 3 | N6: 33.3 % | O6: 2 | P6: 2 | Q6: 100.0 % | R6: 48 | S6: 94 | T6: 51.1 % | V6: 2005 | W6: 10. | X6: KiPa | Y6: 23.
B7: 2006 | C7: 8. | D7: KiPa | E7: 27 | F7: 61 | G7: 123 | H7: 49.6 % | I7: 1 | J7: 2 | K7: 50.0 % | L7: 1 | M7: 1 | N7: 100.0 % | O7: 0 | P7: 0 | Q7: 0.0 % | R7: 63 | S7: 126 | T7: 50.0 % | V7: 2006 | W7: 8. | X7: KiPa | Y7: 15.
B8: Yhteensä | E8: =SUM(E4:E7) -> 70 | F8: =SUM(F4:F7) -> 149 | G8: =SUM(G4:G7) -> 298 | H8: =PRODUCT(F8/G8) -> 50.0 % | I8: =SUM(I4:I7) -> 5 | J8: =SUM(J4:J7) -> 6 | K8: =PRODUCT(I8/J8) -> 83.3 % | L8: =SUM(L4:L7) -> 3 | M8: =SUM(M4:M7) -> 6 | N8: =PRODUCT(L8/M8) -> 50.0 % | O8: =SUM(O4:O7) -> 3 | P8: =SUM(P4:P7) -> 4 | Q8: =PRODUCT(O8/P8) -> 75.0 % | R8: =SUM(R4:R7) -> 160 | S8: =SUM(S4:S7) -> 314 | T8: =PRODUCT(R8/S8) -> 51.0 %
B10: KÄRKILYÖNNIT YLEMMISSÄ PUDOTUSPELEISSÄ | V10: VUOSITTAISET SIJOITUKSET TOP - 30
G11: 0 > 1 | J11: 1 > 2 | M11: 2 > 3 | P11: 3 > k | S11: Yhteensä
B12: Vuosi | C12: Sija | D12: Seura | E12: OTT | F12: KL | G12: YHT | H12: % | I12: KL | J12: YHT | K12: % | L12: KL | M12: YHT | N12: % | O12: KL | P12: YHT | Q12: % | R12: KL | S12: YHT | T12: % | V12: Vuosi | W12: Sija | X12: Seura | Y12: 0 > 1 | Z12: 1 > 2 | AA12: 2 > 3 | AB12: 3 > k | AC12: KL
B13: 2003 | C13: 9. | D13: KiPa | V13: 2003 | W13: 9. | X13: KiPa
B14: 2004 | C14: 2. | D14: KiPa | E14: 9 | F14: 24 | G14: 38 | H14: 63.2 % | I14: 1 | J14: 2 | K14: 50.0 % | L14: 1 | M14: 1 | N14: 100.0 % | O14: 2 | P14: 2 | Q14: 100.0 % | R14: 28 | S14: 43 | T14: 65.1 % | V14: 2004 | W14: 2. | X14: KiPa | Y14: 12.
B15: 2005 | C15: 1. | D15: KiPa | E15: 15 | F15: 29 | G15: 69 | H15: 42.0 % | I15: 1 | J15: 1 | K15: 100.0 % | L15: 0 | M15: 0 | N15: 0.0 % | O15: 1 | P15: 1 | Q15: 100.0 % | R15: 31 | S15: 71 | T15: 43.7 % | V15: 2005 | W15: 1. | X15: KiPa | Y15: 10.
B16: 2006 | C16: 4. | D16: KiPa | E16: 11 | F16: 18 | G16: 45 | H16: 40.0 % | I16: 1 | J16: 1 | K16: 100.0 % | L16: 1 | M16: 1 | N16: 100.0 % | O16: 0 | P16: 1 | Q16: 0.0 % | R16: 20 | S16: 48 | T16: 41.7 % | V16: 2006 | W16: 4. | X16: KiPa | Y16: 16.
B17: Yhteensä | E17: =SUM(E11:E16) -> 35 | F17: =SUM(F13:F16) -> 71 | G17: =SUM(G13:G16) -> 152 | H17: =PRODUCT(F17/G17) -> 46.7 % | I17: =SUM(I13:I16) -> 3 | J17: =SUM(J13:J16) -> 4 | K17: =PRODUCT(I17/J17) -> 75.0 % | L17: =SUM(L13:L16) -> 2 | M17: =SUM(M13:M16) -> 2 | N17: =PRODUCT(L17/M17) -> 100.0 % | O17: =SUM(O13:O16) -> 3 | P17: =SUM(P13:P16) -> 4 | Q17: =PRODUCT(O17/P17) -> 75.0 % | R17: =SUM(R13:R16) -> 79 | S17: =SUM(S13:S16) -> 162 | T17: =PRODUCT(R17/S17) -> 48.8 %
B19: KÄRKILYÖNNIT
G20: 0 > 1 | J20: 1 > 2 | M20: 2 > 3 | P20: 3 > k | S20: Yhteensä
E21: OTT | F21: KL | G21: YHT | H21: % | I21: KL | J21: YHT | K21: % | L21: KL | M21: YHT | N21: % | O21: KL | P21: YHT | Q21: % | R21: KL | S21: YHT | T21: %
B22: RUNKOSARJA | E22: =PRODUCT(E8) -> 70 | F22: =PRODUCT(F8) -> 149 | G22: =PRODUCT(G8) -> 298 | H22: =PRODUCT(H8) -> 50.0 % | I22: =PRODUCT(I8) -> 5 | J22: =PRODUCT(J8) -> 6 | K22: =PRODUCT(K8) -> 83.3 % | L22: =PRODUCT(L8) -> 3 | M22: =PRODUCT(M8) -> 6 | N22: =PRODUCT(N8) -> 50.0 % | O22: =PRODUCT(O8) -> 3 | P22: =PRODUCT(P8) -> 4 | Q22: =PRODUCT(Q8) -> 75.0 % | R22: =PRODUCT(R8) -> 160 | S22: =PRODUCT(S8) -> 314 | T22: =PRODUCT(T8) -> 51.0 %
B23: PLAY OFF | E23: =PRODUCT(E17) -> 35 | F23: =PRODUCT(F17) -> 71 | G23: 152 | H23: 46.7 % | I23: 3 | J23: 4 | K23: 75.0 % | L23: 2 | M23: 2 | N23: 100.0 % | O23: 3 | P23: 4 | Q23: 75.0 % | R23: 79 | S23: 162 | T23: 48.8 %
